[Event "Titled Tuesday Blitz April 25 Late 2023"]
[White "Hambleton, Aman"]
[Black "Munoz, Francisco Javier"]
[WhiteFideId "2606577"]
[BlackFideId "128368"]
[WhiteElo "2511"]
[BlackElo "2383"]
[Result "1-0"]
[Round "10"]
[TimeControl "180+2"]
[Date "2023.04.25"]
[WhiteClock "0:00:04"]
[BlackClock "0:00:42"]

1. d4 {[%clk 0:03:00]}  d5 {[%clk 0:02:58]} 2. Bf4 {[%clk 0:03:00]}  e6 {[%clk 0:02:59]} 3. e3 {[%clk 0:03:01]}  Nf6 {[%clk 0:02:59]} 4. Nd2 {[%clk 0:03:01]}  Bd6 {[%clk 0:03:00]} 5. Ngf3 {[%clk 0:03:02]}  O-O {[%clk 0:03:00]} 6. Bd3 {[%clk 0:03:02]}  c5 {[%clk 0:03:00]} 7. c3 {[%clk 0:03:03]}  Nc6 {[%clk 0:03:01]} 8. Bg3 {[%clk 0:03:03]}  b6 {[%clk 0:03:01]} 9. e4 {[%clk 0:03:03]}  Be7 {[%clk 0:02:58]} 10. e5 {[%clk 0:03:04]}  Nd7 {[%clk 0:02:58]} 11. a3 {[%clk 0:02:53]}  c4 {[%clk 0:02:53]} 12. Bc2 {[%clk 0:02:53]}  b5 {[%clk 0:02:47]} 13. h4 {[%clk 0:02:51]}  a5 {[%clk 0:02:44]} 14. Bxh7+ {[%clk 0:02:30]}  Kxh7 {[%clk 0:02:43]} 15. Ng5+ {[%clk 0:02:30]}  Kg6 {[%clk 0:02:43]} 16. Qg4 {[%clk 0:01:08]}  f5 {[%clk 0:02:42]} 17. h5+ {[%clk 0:01:08]}  Kh6 {[%clk 0:02:34]} 18. Nf7+ {[%clk 0:01:08]}  Kh7 {[%clk 0:02:27]} 19. Qg6+ {[%clk 0:01:09]}  Kg8 {[%clk 0:02:27]} 20. Nxd8 {[%clk 0:01:10]}  Nxd8 {[%clk 0:02:23]} 21. h6 {[%clk 0:01:09]}  Rf7 {[%clk 0:02:07]} 22. Bf4 {[%clk 0:00:20]}  Nf8 {[%clk 0:02:04]} 23. Qg3 {[%clk 0:00:21]}  g6 {[%clk 0:01:57]} 24. Nf3 {[%clk 0:00:21]}  Kh7 {[%clk 0:01:55]} 25. Bg5 {[%clk 0:00:19]}  Rb8 {[%clk 0:01:52]} 26. Bxe7 {[%clk 0:00:15]}  Rxe7 {[%clk 0:01:52]} 27. Qh4 {[%clk 0:00:16]}  Rbb7 {[%clk 0:01:19]} 28. Qf6 {[%clk 0:00:12]}  Kg8 {[%clk 0:01:11]} 29. h7+ {[%clk 0:00:05]}  Rxh7 {[%clk 0:01:10]} 30. Rxh7 {[%clk 0:00:04]}  Rxh7 {[%clk 0:01:11]} 31. Qxd8 {[%clk 0:00:03]}  Rh1+ {[%clk 0:01:05]} 32. Kd2 {[%clk 0:00:03]}  Rxa1 {[%clk 0:01:06]} 33. Ng5 {[%clk 0:00:02]}  Kg7 {[%clk 0:00:46]} 34. Qe7+ {[%clk 0:00:02]}  Kh6 {[%clk 0:00:47]} 35. Nf7+ {[%clk 0:00:03]}  Kg7 {[%clk 0:00:47]} 36. Nd6+ {[%clk 0:00:03]}  Kh6 {[%clk 0:00:47]} 37. Qxf8+ {[%clk 0:00:03]}  Kg5 {[%clk 0:00:47]} 38. Qe7+ {[%clk 0:00:04]}  Kg4 {[%clk 0:00:47]} 39. Nf7 {[%clk 0:00:04]}  Rd1+ {[%clk 0:00:40]} 40. Kxd1 {[%clk 0:00:04]}  Kf4 {[%clk 0:00:41]} 41. Qg5+ {[%clk 0:00:04]}  Ke4 {[%clk 0:00:42]} 42. Kd2 {[%clk 0:00:03]}  b4 {[%clk 0:00:42]} 43. Nd6# {[%clk 0:00:04]} 1-0


[Site "https://www.chess.com"]

[Event "Titled Tuesday Blitz April 25 Late 2023"]
[White "Holt, Conrad"]
[Black "Martinez Reyes, Pedro Ramon"]
[WhiteFideId "2034387"]
[BlackFideId "3901807"]
[WhiteElo "2592"]
[BlackElo "2340"]
[Result "1-0"]
[Round "10"]
[TimeControl "180+2"]
[Date "2023.04.25"]
[WhiteClock "0:01:06"]
[BlackClock "0:01:10"]

1. d4 {[%clk 0:03:00]}  Nf6 {[%clk 0:02:59]} 2. c4 {[%clk 0:03:01]}  c5 {[%clk 0:02:59]} 3. d5 {[%clk 0:03:01]}  e5 {[%clk 0:02:59]} 4. Nc3 {[%clk 0:03:01]}  d6 {[%clk 0:02:59]} 5. e4 {[%clk 0:03:01]}  Be7 {[%clk 0:03:00]} 6. Be2 {[%clk 0:03:00]}  Nbd7 {[%clk 0:03:01]} 7. Nf3 {[%clk 0:03:00]}  Nf8 {[%clk 0:03:00]} 8. O-O {[%clk 0:02:59]}  Ng6 {[%clk 0:03:01]} 9. Ne1 {[%clk 0:02:59]}  a6 {[%clk 0:02:56]} 10. Nd3 {[%clk 0:02:57]}  O-O {[%clk 0:02:49]} 11. a3 {[%clk 0:02:48]}  Nd7 {[%clk 0:02:42]} 12. Bh5 {[%clk 0:02:44]}  Bg5 {[%clk 0:02:41]} 13. Bxg6 {[%clk 0:02:41]}  hxg6 {[%clk 0:02:30]} 14. Bxg5 {[%clk 0:02:37]}  Qxg5 {[%clk 0:02:30]} 15. Qc1 {[%clk 0:02:37]}  Qh4 {[%clk 0:02:24]} 16. f4 {[%clk 0:02:19]}  exf4 {[%clk 0:02:23]} 17. Rxf4 {[%clk 0:02:17]}  Qe7 {[%clk 0:02:20]} 18. h4 {[%clk 0:02:12]}  Ne5 {[%clk 0:02:20]} 19. Nxe5 {[%clk 0:02:07]}  Qxe5 {[%clk 0:02:21]} 20. Qf1 {[%clk 0:02:02]}  b5 {[%clk 0:02:17]} 21. cxb5 {[%clk 0:01:59]}  axb5 {[%clk 0:02:17]} 22. Nxb5 {[%clk 0:01:41]}  Ba6 {[%clk 0:02:15]} 23. Rf2 {[%clk 0:01:41]}  Rfb8 {[%clk 0:02:11]} 24. a4 {[%clk 0:01:41]}  Qxe4 {[%clk 0:02:04]} 25. Re1 {[%clk 0:01:11]}  Qxa4 {[%clk 0:01:33]} 26. Rxf7 {[%clk 0:01:08]}  Bxb5 {[%clk 0:01:33]} 27. Rxg7+ {[%clk 0:01:07]}  Kh8 {[%clk 0:01:12]} 28. Rh7+ {[%clk 0:01:07]}  Kxh7 {[%clk 0:01:11]} 29. Re7+ {[%clk 0:01:07]}  Kh6 {[%clk 0:01:10]} 30. Qc1+ {[%clk 0:01:06]} 1-0


[Site "https://www.chess.com"]

[Event "Titled Tuesday Blitz April 25 Late 2023"]
[White "Ghazarian, Kirk"]
[Black "Przybylski, Wojciech"]
[WhiteFideId "30908604"]
[BlackFideId "1117599"]
[WhiteElo "2346"]
[BlackElo "2222"]
[Result "1-0"]
[Round "10"]
[TimeControl "180+2"]
[Date "2023.04.25"]
[WhiteClock "0:00:07"]
[BlackClock "0:00:07"]

1. e4 {[%clk 0:03:00]}  e5 {[%clk 0:02:58]} 2. Nf3 {[%clk 0:03:00]}  Nf6 {[%clk 0:02:58]} 3. Nc3 {[%clk 0:03:00]}  Bb4 {[%clk 0:02:56]} 4. Nxe5 {[%clk 0:02:54]}  O-O {[%clk 0:02:56]} 5. Be2 {[%clk 0:02:48]}  Re8 {[%clk 0:02:54]} 6. Nd3 {[%clk 0:02:48]}  Bxc3 {[%clk 0:02:53]} 7. dxc3 {[%clk 0:02:49]}  Nxe4 {[%clk 0:02:53]} 8. O-O {[%clk 0:02:50]}  d5 {[%clk 0:02:53]} 9. Bf4 {[%clk 0:02:45]}  c6 {[%clk 0:02:51]} 10. h3 {[%clk 0:02:38]}  Bf5 {[%clk 0:02:50]} 11. Bh2 {[%clk 0:02:37]}  Qb6 {[%clk 0:02:44]} 12. Rb1 {[%clk 0:02:37]}  Nd7 {[%clk 0:02:42]} 13. a4 {[%clk 0:02:30]}  a5 {[%clk 0:02:41]} 14. Nf4 {[%clk 0:02:25]}  Ne5 {[%clk 0:02:34]} 15. Bd3 {[%clk 0:02:07]}  Rad8 {[%clk 0:02:14]} 16. Bxe4 {[%clk 0:01:57]}  dxe4 {[%clk 0:01:50]} 17. Qe2 {[%clk 0:01:57]}  h6 {[%clk 0:01:47]} 18. b3 {[%clk 0:01:52]}  Nd7 {[%clk 0:01:43]} 19. Qe3 {[%clk 0:01:47]}  Qa6 {[%clk 0:01:35]} 20. Rbd1 {[%clk 0:01:44]}  Nf6 {[%clk 0:01:30]} 21. Rfe1 {[%clk 0:01:38]}  g5 {[%clk 0:01:17]} 22. c4 {[%clk 0:01:24]}  Bh7 {[%clk 0:00:52]} 23. Ne2 {[%clk 0:01:21]}  b5 {[%clk 0:00:46]} 24. Qc3 {[%clk 0:01:11]}  Nh5 {[%clk 0:00:43]} 25. axb5 {[%clk 0:01:00]}  cxb5 {[%clk 0:00:41]} 26. cxb5 {[%clk 0:00:59]}  Qxb5 {[%clk 0:00:38]} 27. Nd4 {[%clk 0:00:59]}  Qb6 {[%clk 0:00:36]} 28. Kh1 {[%clk 0:00:45]}  Nf4 {[%clk 0:00:33]} 29. Bxf4 {[%clk 0:00:43]}  gxf4 {[%clk 0:00:33]} 30. Nc6 {[%clk 0:00:33]}  Rc8 {[%clk 0:00:31]} 31. Ne7+ {[%clk 0:00:32]}  Rxe7 {[%clk 0:00:26]} 32. Qxc8+ {[%clk 0:00:31]}  Kg7 {[%clk 0:00:26]} 33. Qg4+ {[%clk 0:00:31]}  Bg6 {[%clk 0:00:23]} 34. Qxf4 {[%clk 0:00:31]}  Qc5 {[%clk 0:00:17]} 35. c4 {[%clk 0:00:28]}  a4 {[%clk 0:00:15]} 36. bxa4 {[%clk 0:00:28]}  Qxc4 {[%clk 0:00:15]} 37. a5 {[%clk 0:00:27]}  Qb5 {[%clk 0:00:14]} 38. Ra1 {[%clk 0:00:24]}  Ra7 {[%clk 0:00:14]} 39. Qe3 {[%clk 0:00:23]}  Ra6 {[%clk 0:00:12]} 40. Reb1 {[%clk 0:00:21]}  Qe5 {[%clk 0:00:11]} 41. Re1 {[%clk 0:00:07]}  Rxa5 {[%clk 0:00:10]} 42. Rxa5 {[%clk 0:00:08]}  Qxa5 {[%clk 0:00:09]} 43. Rc1 {[%clk 0:00:08]}  h5 {[%clk 0:00:06]} 44. Rc5 {[%clk 0:00:05]}  Qa1+ {[%clk 0:00:05]} 45. Kh2 {[%clk 0:00:06]}  Qf6 {[%clk 0:00:05]} 46. Qg3 {[%clk 0:00:04]}  h4 {[%clk 0:00:05]} 47. Qe5 {[%clk 0:00:04]}  Qxe5+ {[%clk 0:00:05]} 48. Rxe5 {[%clk 0:00:05]}  Kf6 {[%clk 0:00:06]} 49. Ra5 {[%clk 0:00:05]}  Ke6 {[%clk 0:00:06]} 50. Kg1 {[%clk 0:00:06]}  Kf6 {[%clk 0:00:07]} 51. Kf1 {[%clk 0:00:07]}  Ke6 {[%clk 0:00:07]} 52. Ke2 {[%clk 0:00:07]}  Kf6 {[%clk 0:00:06]} 53. Ke3 {[%clk 0:00:07]}  Ke6 {[%clk 0:00:06]} 54. Ra3 {[%clk 0:00:08]}  Ke5 {[%clk 0:00:04]} 55. Rc3 {[%clk 0:00:09]}  f5 {[%clk 0:00:04]} 56. Rc1 {[%clk 0:00:09]}  f4+ {[%clk 0:00:04]} 57. Kd2 {[%clk 0:00:08]}  Bf5 {[%clk 0:00:04]} 58. Rc7 {[%clk 0:00:07]}  Kf6 {[%clk 0:00:03]} 59. Rc5 {[%clk 0:00:06]}  Ke6 {[%clk 0:00:03]} 60. Kc3 {[%clk 0:00:05]}  Kf6 {[%clk 0:00:04]} 61. Kd4 {[%clk 0:00:05]}  Ke6 {[%clk 0:00:04]} 62. Rc6+ {[%clk 0:00:04]}  Ke7 {[%clk 0:00:05]} 63. Rh6 {[%clk 0:00:04]}  e3 {[%clk 0:00:04]} 64. fxe3 {[%clk 0:00:03]}  f3 {[%clk 0:00:05]} 65. gxf3 {[%clk 0:00:02]}  Bxh3 {[%clk 0:00:05]} 66. Rxh4 {[%clk 0:00:03]}  Bg2 {[%clk 0:00:06]} 67. Rf4 {[%clk 0:00:04]}  Ke6 {[%clk 0:00:06]} 68. Kd3 {[%clk 0:00:04]}  Bh3 {[%clk 0:00:06]} 69. Ke2 {[%clk 0:00:05]}  Ke5 {[%clk 0:00:06]} 70. Kf2 {[%clk 0:00:06]}  Bd7 {[%clk 0:00:06]} 71. Rd4 {[%clk 0:00:07]}  Bc6 {[%clk 0:00:06]} 72. Rd2 {[%clk 0:00:08]}  Kf5 {[%clk 0:00:07]} 73. e4+ {[%clk 0:00:08]}  Kf4 {[%clk 0:00:07]} 74. Re2 {[%clk 0:00:09]}  Bb5 {[%clk 0:00:07]} 75. Re1 {[%clk 0:00:09]}  Bc4 {[%clk 0:00:08]} 76. Rc1 {[%clk 0:00:09]}  Be6 {[%clk 0:00:07]} 77. Rc5 {[%clk 0:00:09]}  Bd7 {[%clk 0:00:07]} 78. Ra5 {[%clk 0:00:07]}  Be8 {[%clk 0:00:07]} 79. Rf5# {[%clk 0:00:07]} 1-0


[Site "https://www.chess.com"]

[Event "Titled Tuesday Blitz April 25 Late 2023"]
[White "Oro, Faustino"]
[Black "Erzhanov, Arman"]
[WhiteFideId "20000197"]
[BlackFideId "4138821"]
[WhiteElo "1984"]
[BlackElo "2138"]
[Result "1-0"]
[Round "10"]
[TimeControl "180+2"]
[Date "2023.04.25"]
[WhiteClock "0:00:06"]
[BlackClock "0:00:02"]

1. Nf3 {[%clk 0:03:00]}  d6 {[%clk 0:02:55]} 2. d4 {[%clk 0:03:00]}  g6 {[%clk 0:02:55]} 3. e4 {[%clk 0:02:59]}  Bg7 {[%clk 0:02:55]} 4. Nc3 {[%clk 0:03:00]}  Nd7 {[%clk 0:02:54]} 5. Be3 {[%clk 0:02:57]}  e5 {[%clk 0:02:54]} 6. Qd2 {[%clk 0:02:56]}  c6 {[%clk 0:02:54]} 7. O-O-O {[%clk 0:02:56]}  Qa5 {[%clk 0:02:54]} 8. Kb1 {[%clk 0:02:56]}  Ngf6 {[%clk 0:02:52]} 9. h3 {[%clk 0:02:56]}  O-O {[%clk 0:02:51]} 10. Bc4 {[%clk 0:02:51]}  b5 {[%clk 0:02:51]} 11. Bd3 {[%clk 0:02:48]}  b4 {[%clk 0:02:51]} 12. Ne2 {[%clk 0:02:47]}  exd4 {[%clk 0:02:49]} 13. Nexd4 {[%clk 0:02:42]}  c5 {[%clk 0:02:49]} 14. Nb3 {[%clk 0:02:41]}  Qc7 {[%clk 0:02:46]} 15. Qe2 {[%clk 0:02:20]}  Bb7 {[%clk 0:02:43]} 16. Nbd2 {[%clk 0:02:17]}  Rfe8 {[%clk 0:02:43]} 17. Rhe1 {[%clk 0:02:05]}  Nxe4 {[%clk 0:02:39]} 18. Nxe4 {[%clk 0:02:04]}  Bxe4 {[%clk 0:02:39]} 19. Bxe4 {[%clk 0:02:05]}  Rxe4 {[%clk 0:02:40]} 20. Qd3 {[%clk 0:02:06]}  Re6 {[%clk 0:02:00]} 21. Ng5 {[%clk 0:02:02]}  Re7 {[%clk 0:01:43]} 22. Qxd6 {[%clk 0:01:53]}  Qxd6 {[%clk 0:01:42]} 23. Rxd6 {[%clk 0:01:54]}  Bd4 {[%clk 0:01:25]} 24. Bd2 {[%clk 0:01:17]}  Rxe1+ {[%clk 0:01:16]} 25. Bxe1 {[%clk 0:01:18]}  Re8 {[%clk 0:01:15]} 26. Nf3 {[%clk 0:01:17]}  Nb6 {[%clk 0:01:04]} 27. b3 {[%clk 0:00:40]}  Bg7 {[%clk 0:00:36]} 28. Kc1 {[%clk 0:00:33]}  Bf8 {[%clk 0:00:33]} 29. Rc6 {[%clk 0:00:29]}  Nd5 {[%clk 0:00:28]} 30. Bd2 {[%clk 0:00:15]}  Kg7 {[%clk 0:00:20]} 31. Ne1 {[%clk 0:00:09]}  Re2 {[%clk 0:00:19]} 32. Nd3 {[%clk 0:00:09]}  Nf6 {[%clk 0:00:10]} 33. Kd1 {[%clk 0:00:08]}  Re8 {[%clk 0:00:07]} 34. f3 {[%clk 0:00:05]}  Rd8 {[%clk 0:00:07]} 35. Bg5 {[%clk 0:00:05]}  Be7 {[%clk 0:00:06]} 36. Ke1 {[%clk 0:00:04]}  Rd7 {[%clk 0:00:06]} 37. Nxc5 {[%clk 0:00:03]}  Bxc5 {[%clk 0:00:06]} 38. Bxf6+ {[%clk 0:00:03]}  Kh6 {[%clk 0:00:05]} 39. Rxc5 {[%clk 0:00:04]}  Rd6 {[%clk 0:00:05]} 40. Bg5+ {[%clk 0:00:04]}  Kg7 {[%clk 0:00:05]} 41. Be3 {[%clk 0:00:05]}  Re6 {[%clk 0:00:05]} 42. Kf2 {[%clk 0:00:05]}  f5 {[%clk 0:00:05]} 43. Ke2 {[%clk 0:00:05]}  f4 {[%clk 0:00:05]} 44. Rc7+ {[%clk 0:00:05]}  Kf6 {[%clk 0:00:05]} 45. Rxa7 {[%clk 0:00:06]}  Rxe3+ {[%clk 0:00:04]} 46. Kd2 {[%clk 0:00:06]}  h5 {[%clk 0:00:04]} 47. Ra4 {[%clk 0:00:06]}  Re1 {[%clk 0:00:02]} 48. Kxe1 {[%clk 0:00:06]} 1-0


[Site "https://www.chess.com"]

[Event "Titled Tuesday Blitz April 25 Late 2023"]
[White "Prohaszka, Peter"]
[Black "Pesotskiy, Mikhail"]
[WhiteFideId "726265"]
[BlackFideId "34164453"]
[WhiteElo "2626"]
[BlackElo "2131"]
[Result "0-1"]
[Round "10"]
[TimeControl "180+2"]
[Date "2023.04.25"]
[WhiteClock "0:00:01"]
[BlackClock "0:00:03"]

1. d4 {[%clk 0:02:34]}  Nf6 {[%clk 0:02:59]} 2. c4 {[%clk 0:02:32]}  e6 {[%clk 0:02:59]} 3. Bf4 {[%clk 0:02:31]}  Bb4+ {[%clk 0:03:00]} 4. Nd2 {[%clk 0:02:31]}  O-O {[%clk 0:02:56]} 5. a3 {[%clk 0:02:22]}  Bxd2+ {[%clk 0:02:50]} 6. Qxd2 {[%clk 0:02:22]}  d5 {[%clk 0:02:48]} 7. Rc1 {[%clk 0:02:20]}  c6 {[%clk 0:02:26]} 8. Nf3 {[%clk 0:02:01]}  dxc4 {[%clk 0:02:03]} 9. Rxc4 {[%clk 0:01:56]}  b6 {[%clk 0:02:01]} 10. Bxb8 {[%clk 0:01:44]}  Rxb8 {[%clk 0:02:02]} 11. Rxc6 {[%clk 0:01:44]}  Bb7 {[%clk 0:01:51]} 12. Rc1 {[%clk 0:01:44]}  Qd5 {[%clk 0:01:30]} 13. e3 {[%clk 0:01:30]}  Ne4 {[%clk 0:01:28]} 14. Qd1 {[%clk 0:01:16]}  Qa5+ {[%clk 0:01:20]} 15. Nd2 {[%clk 0:01:11]}  Rbc8 {[%clk 0:01:17]} 16. Ra1 {[%clk 0:00:53]}  Rc7 {[%clk 0:00:24]} 17. Bd3 {[%clk 0:00:41]}  Qxd2+ {[%clk 0:00:21]} 18. Qxd2 {[%clk 0:00:42]}  Nxd2 {[%clk 0:00:22]} 19. Kxd2 {[%clk 0:00:42]}  Bxg2 {[%clk 0:00:23]} 20. Rhc1 {[%clk 0:00:34]}  Rfc8 {[%clk 0:00:22]} 21. Rxc7 {[%clk 0:00:31]}  Rxc7 {[%clk 0:00:23]} 22. e4 {[%clk 0:00:28]}  f6 {[%clk 0:00:15]} 23. Rg1 {[%clk 0:00:27]}  Bf3 {[%clk 0:00:16]} 24. Ke3 {[%clk 0:00:19]}  Bh5 {[%clk 0:00:16]} 25. a4 {[%clk 0:00:18]}  Bf7 {[%clk 0:00:15]} 26. a5 {[%clk 0:00:17]}  bxa5 {[%clk 0:00:13]} 27. Ra1 {[%clk 0:00:17]}  Rb7 {[%clk 0:00:13]} 28. Rxa5 {[%clk 0:00:17]}  Rxb2 {[%clk 0:00:13]} 29. Rxa7 {[%clk 0:00:17]}  Rb8 {[%clk 0:00:11]} 30. Bc4 {[%clk 0:00:16]}  Kf8 {[%clk 0:00:09]} 31. Rc7 {[%clk 0:00:16]}  Rd8 {[%clk 0:00:08]} 32. f4 {[%clk 0:00:16]}  h6 {[%clk 0:00:06]} 33. f5 {[%clk 0:00:16]}  Re8 {[%clk 0:00:05]} 34. h4 {[%clk 0:00:16]}  Re7 {[%clk 0:00:05]} 35. Rc8+ {[%clk 0:00:15]}  Re8 {[%clk 0:00:06]} 36. Rxe8+ {[%clk 0:00:15]}  Kxe8 {[%clk 0:00:05]} 37. Bxe6 {[%clk 0:00:14]}  Bh5 {[%clk 0:00:03]} 38. Kf4 {[%clk 0:00:14]}  g5+ {[%clk 0:00:03]} 39. fxg6 {[%clk 0:00:13]}  Bxg6 {[%clk 0:00:03]} 40. Bf5 {[%clk 0:00:13]}  Bf7 {[%clk 0:00:04]} 41. Ke3 {[%clk 0:00:09]}  Ke7 {[%clk 0:00:04]} 42. Kd3 {[%clk 0:00:09]}  Kd6 {[%clk 0:00:05]} 43. Kc3 {[%clk 0:00:09]}  Be8 {[%clk 0:00:04]} 44. Kd2 {[%clk 0:00:09]}  Bc6 {[%clk 0:00:04]} 45. Ke3 {[%clk 0:00:09]}  Be8 {[%clk 0:00:05]} 46. Bg4 {[%clk 0:00:09]}  Bf7 {[%clk 0:00:05]} 47. Be2 {[%clk 0:00:09]}  Be6 {[%clk 0:00:06]} 48. Bh5 {[%clk 0:00:09]}  Bd7 {[%clk 0:00:05]} 49. Kf4 {[%clk 0:00:10]}  Be6 {[%clk 0:00:05]} 50. Be8 {[%clk 0:00:10]}  Ke7 {[%clk 0:00:03]} 51. Bg6 {[%clk 0:00:09]}  Kd6 {[%clk 0:00:03]} 52. Bf5 {[%clk 0:00:09]}  Bf7 {[%clk 0:00:03]} 53. Bh3 {[%clk 0:00:08]}  Be8 {[%clk 0:00:04]} 54. Bg4 {[%clk 0:00:08]}  Bg6 {[%clk 0:00:04]} 55. Bf3 {[%clk 0:00:08]}  Ke7 {[%clk 0:00:03]} 56. Kg4 {[%clk 0:00:07]}  Kd6 {[%clk 0:00:03]} 57. Kg3 {[%clk 0:00:07]}  Be8 {[%clk 0:00:04]} 58. Kf4 {[%clk 0:00:07]}  Bf7 {[%clk 0:00:04]} 59. Kf5 {[%clk 0:00:07]}  Ke7 {[%clk 0:00:05]} 60. d5 {[%clk 0:00:07]}  Be8 {[%clk 0:00:04]} 61. Be2 {[%clk 0:00:07]}  Bf7 {[%clk 0:00:02]} 62. Bd1 {[%clk 0:00:08]}  Be8 {[%clk 0:00:02]} 63. Bf3 {[%clk 0:00:08]}  Bf7 {[%clk 0:00:02]} 64. Be2 {[%clk 0:00:08]}  Be8 {[%clk 0:00:03]} 65. Bb5 {[%clk 0:00:08]}  Bxb5 {[%clk 0:00:03]} 66. d6+ {[%clk 0:00:04]}  Kxd6 {[%clk 0:00:04]} 67. Kxf6 {[%clk 0:00:05]}  h5 {[%clk 0:00:03]} 68. e5+ {[%clk 0:00:05]}  Kd5 {[%clk 0:00:03]} 69. e6 {[%clk 0:00:04]}  Ke4 {[%clk 0:00:03]} 70. e7 {[%clk 0:00:01]}  Kf4 {[%clk 0:00:03]} 71. Kg6 {[%clk 0:00:01]}  Kg4 {[%clk 0:00:03]} 72. Kf7 {[%clk 0:00:01]}  Kxh4 {[%clk 0:00:03]} 73. Ke6 {[%clk 0:00:01]}  Kg4 {[%clk 0:00:03]} 0-1


[Site "https://www.chess.com"]

[Event "Titled Tuesday Blitz April 25 Late 2023"]
[White "Harriott, Tyrell"]
[Black "Kavutskiy, Konstantin"]
[WhiteFideId "2086484"]
[BlackFideId "2026384"]
[WhiteElo "2107"]
[BlackElo "2323"]
[Result "1/2-1/2"]
[Round "10"]
[TimeControl "180+2"]
[Date "2023.04.25"]
[WhiteClock "0:00:12"]
[BlackClock "0:00:05"]

1. d4 {[%clk 0:02:57]}  Nf6 {[%clk 0:02:59]} 2. e3 {[%clk 0:02:58]}  g6 {[%clk 0:02:59]} 3. Bd3 {[%clk 0:02:58]}  Bg7 {[%clk 0:02:59]} 4. f4 {[%clk 0:02:59]}  O-O {[%clk 0:02:58]} 5. f5 {[%clk 0:02:58]}  c5 {[%clk 0:02:52]} 6. c3 {[%clk 0:02:54]}  d6 {[%clk 0:02:49]} 7. fxg6 {[%clk 0:02:54]}  hxg6 {[%clk 0:02:49]} 8. Nf3 {[%clk 0:02:54]}  Nc6 {[%clk 0:02:41]} 9. O-O {[%clk 0:02:53]}  cxd4 {[%clk 0:02:30]} 10. exd4 {[%clk 0:02:52]}  Qa5 {[%clk 0:02:27]} 11. Ng5 {[%clk 0:02:48]}  Nh7 {[%clk 0:02:20]} 12. Nxh7 {[%clk 0:02:42]}  Kxh7 {[%clk 0:02:21]} 13. Nd2 {[%clk 0:02:42]}  Bd7 {[%clk 0:01:19]} 14. Ne4 {[%clk 0:02:40]}  Kg8 {[%clk 0:01:14]} 15. Ng5 {[%clk 0:02:38]}  Bf6 {[%clk 0:01:07]} 16. Ne4 {[%clk 0:01:58]}  Bg7 {[%clk 0:01:03]} 17. Qe1 {[%clk 0:01:57]}  Qh5 {[%clk 0:01:00]} 18. Be2 {[%clk 0:01:55]}  Bg4 {[%clk 0:00:56]} 19. Ng3 {[%clk 0:01:55]}  Qh4 {[%clk 0:00:55]} 20. Bd3 {[%clk 0:01:54]}  Bh6 {[%clk 0:00:48]} 21. Bxh6 {[%clk 0:01:46]}  Qxh6 {[%clk 0:00:48]} 22. Be4 {[%clk 0:01:38]}  Rad8 {[%clk 0:00:41]} 23. Bxc6 {[%clk 0:01:31]}  bxc6 {[%clk 0:00:41]} 24. Qxe7 {[%clk 0:01:31]}  Rd7 {[%clk 0:00:32]} 25. Qf6 {[%clk 0:01:23]}  Re8 {[%clk 0:00:28]} 26. Rf2 {[%clk 0:01:18]}  Re6 {[%clk 0:00:24]} 27. Qf4 {[%clk 0:01:14]}  Qxf4 {[%clk 0:00:22]} 28. Rxf4 {[%clk 0:01:15]}  Be2 {[%clk 0:00:20]} 29. Re1 {[%clk 0:01:11]}  Bc4 {[%clk 0:00:20]} 30. Ne4 {[%clk 0:01:00]}  Kg7 {[%clk 0:00:20]} 31. b3 {[%clk 0:00:48]}  Bd5 {[%clk 0:00:18]} 32. c4 {[%clk 0:00:48]}  Bxe4 {[%clk 0:00:18]} 33. Rfxe4 {[%clk 0:00:48]}  Rxe4 {[%clk 0:00:18]} 34. Rxe4 {[%clk 0:00:49]}  d5 {[%clk 0:00:18]} 35. Rf4 {[%clk 0:00:34]}  dxc4 {[%clk 0:00:17]} 36. bxc4 {[%clk 0:00:35]}  Rb7 {[%clk 0:00:16]} 37. h3 {[%clk 0:00:31]}  Rb1+ {[%clk 0:00:14]} 38. Kh2 {[%clk 0:00:29]}  Rb2 {[%clk 0:00:11]} 39. d5 {[%clk 0:00:29]}  cxd5 {[%clk 0:00:11]} 40. cxd5 {[%clk 0:00:30]}  Rxa2 {[%clk 0:00:11]} 41. Rd4 {[%clk 0:00:30]}  Kf8 {[%clk 0:00:10]} 42. d6 {[%clk 0:00:30]}  Ke8 {[%clk 0:00:11]} 43. h4 {[%clk 0:00:29]}  a5 {[%clk 0:00:09]} 44. Kh3 {[%clk 0:00:28]}  a4 {[%clk 0:00:09]} 45. g4 {[%clk 0:00:28]}  a3 {[%clk 0:00:08]} 46. Ra4 {[%clk 0:00:24]}  Kd7 {[%clk 0:00:06]} 47. Ra6 {[%clk 0:00:24]}  Ra1 {[%clk 0:00:05]} 48. Kg2 {[%clk 0:00:23]}  f5 {[%clk 0:00:03]} 49. h5 {[%clk 0:00:22]}  gxh5 {[%clk 0:00:03]} 50. gxh5 {[%clk 0:00:20]}  a2 {[%clk 0:00:03]} 51. h6 {[%clk 0:00:20]}  f4 {[%clk 0:00:03]} 52. h7 {[%clk 0:00:17]}  f3+ {[%clk 0:00:03]} 53. Kxf3 {[%clk 0:00:17]}  Rh1 {[%clk 0:00:04]} 54. Rxa2 {[%clk 0:00:15]}  Kxd6 {[%clk 0:00:04]} 55. Ra6+ {[%clk 0:00:14]}  Ke5 {[%clk 0:00:04]} 56. Ra7 {[%clk 0:00:14]}  Kf6 {[%clk 0:00:04]} 57. Kg4 {[%clk 0:00:14]}  Kg6 {[%clk 0:00:04]} 58. Ra6+ {[%clk 0:00:14]}  Kxh7 {[%clk 0:00:04]} 59. Ra7+ {[%clk 0:00:13]}  Kg6 {[%clk 0:00:05]} 60. Kf3 {[%clk 0:00:13]}  Rf1+ {[%clk 0:00:04]} 61. Kg2 {[%clk 0:00:13]}  Rf7 {[%clk 0:00:05]} 62. Rxf7 {[%clk 0:00:12]}  Kxf7 {[%clk 0:00:05]} 1/2-1/2


[Site "https://www.chess.com"]